Cogmind - Beta 16 @@@ ROGUE MODE // 2026.02.02 @ 15:38:47 Player: Anonymous Bosch Result: Destroyed by S-10 Pest with Light Assault Rifle Performance ------------- Evolutions (2) 1000 Regions Visited (3) 600 Robots Destroyed (48) 240 Value Destroyed (1112) 1112 Prototype IDs (15) 300 Alien Tech Used (0) 0 Bonus (0) 0 TOTAL SCORE: 3252 Bonus ------- None Cogmind --------- Core Integrity 0/550 Matter 300/300 Energy 22/100 System Corruption 0% Temperature Cool (3) Movement Flying (40) Location -8/Materials Parts ------- > --- POWER (1) -------- (None) > --- PROPULSION (4) --- Flightbrick > --- UTILITY (4+3) ---- Subdweller Optics Sensor Array Gun Armor > --- WEAPON (2+2) ----- (None) > --- INVENTORY (5) ---- High-capacity Matter Pod (200) Subdweller Optics Improved Sensor Array Signal Interpreter Improved Terrain Scanner Peak State ------------ > --- POWER ------------ (None) > --- PROPULSION ------- Flightbrick > --- UTILITY ---------- High-capacity Storage Unit Subdweller Optics Gun Armor > --- WEAPON ----------- (None) > --- INVENTORY -------- Large Battery High-capacity Matter Pod Machine Analyzer Subdweller Optics Sensor Array Improved Sensor Array Signal Interpreter Improved Terrain Scanner Hacking Suite Multitool [Rating: 50] Favorites ----------- Power Ion Engine Engine Ion Engine Propulsion Wheel Treads Light Treads Leg Aluminum Leg Wheel Wheel Flight Unit Flightbrick Utility High-capacity Storage Unit Device Sensor Array Storage High-capacity Storage Unit Protection Light Armor Plating Weapon Grenade Launcher Energy Gun Medium Laser Energy Cannon Beam Cannon Ballistic Gun Subdweller Machine Gun Launcher Grenade Launcher Build | -11 -10 -10 -8 ------- Run | Yrd Mat Sub Mat Slots Evolved 4 | . . . 4 Power . | . . . . Propulsion 2 | . . . 2 Utility 2 | . . . 2 Weapon . | . . . . Parts Attached 49 | 7 12 10 20 Power 6 | 1 2 1 2 Engine 6 | 1 2 1 2 Core . | . . . . Reactor . | . . . . Propulsion 13 | 2 3 1 7 Treads 3 | . . . 3 Leg 2 | 2 . . . Wheel 6 | . 3 1 2 Hover . | . . . . Flight 2 | . . . 2 Utility 14 | 2 2 3 7 Device 4 | 1 . 1 2 Storage 2 | 1 1 . . Processor . | . . . . Hackware . | . . . . Protection 8 | . 1 2 5 Artifact . | . . . . Weapon 16 | 2 5 5 4 Energy Gun 7 | 2 1 2 2 Energy Cannon 5 | . 1 2 2 Ballistic Gun 2 | . 1 1 . Ballistic Cannon . | . . . . Launcher 2 | . 2 . . Special Weapon . | . . . . Impact Weapon . | . . . . Slashing Weapon . | . . . . Piercing Weapon . | . . . . Special Melee Weapon . | . . . . Unidentified Prototypes 3 | . . . 3 Parts Lost 22 | . 1 8 13 Power 3 | . . 1 2 Propulsion 8 | . 1 1 6 Utility 6 | . . 2 4 Weapon 5 | . . 4 1 Highest Loss Streak 11 | . 1 6 11 To Critical Strikes . | . . . . Average Backups 15 | 6 17 17 13 Power 1 | . 2 1 . Propulsion 3 | 4 4 3 1 Utility 7 | . 6 9 9 Weapon 2 | . 3 3 . Tool/Special . | . . . . Unused Backups 17 | . 4 4 9 Power 2 | . 1 . 1 Propulsion . | . . . . Utility 12 | . 2 3 7 Weapon 2 | . 1 1 . Tool/Special 1 | . . . 1 Average Slot Usage (%) 92 | . 97 98 72 Engine 12 | . 14 13 6 Treads 2 | . . . 12 Wheel 23 | . 26 27 12 Device 5 | . 1 10 5 Storage 12 | . 14 14 7 Protection 9 | . 11 3 11 Energy Gun 6 | . 7 4 6 Energy Cannon 5 | . 7 6 1 Ballistic Gun 4 | . . 10 5 Launcher 7 | . 10 6 . Peak Build Rating 50 | 8 9 18 50 Average Rating 13 | 4 8 11 28 On Entrance 8 | . 8 9 16 Avg Prop Armor Cover (%) 12 | . . . 12 Naked Turns . | . . . . Heaviest Build 82 | 12 54 57 82 Greatest Support 40 | 20 26 32 40 Greatest Overweight (x) 8 | 3 5 3 8 Average Overweight (x) 1 | 2 1 1 1 Largest Inventory Capacity 20 | 8 20 20 20 Average Capacity 18 | 7 19 20 17 Most Carried 20 | 8 20 20 20 Average Carried 16 | 6 17 19 16 Final Capacity 20 | 8 20 20 5 Final Carried 20 | 8 19 20 5 Class Distribution -------------------- 91% | Mutant 8% | Subdweller-Mutant Dominant Class ---------------- Mutant | -10/Materials Mutant | -10/Subcaves Mutant | -8/Materials Resources | -11 -10 -10 -8 ----------- Run | Yrd Mat Sub Mat Matter Collected 1793 | 270 590 355 578 Remotely . | . . . . Salvage Created 1261 | 208 433 242 378 Parts 78 | 10 32 18 18 Haulers Intercepted 3 | . 2 . 1 Recyclers Shooed 3 | . 2 . 1 Parts Field Recycled . | . . . . Retrieved Matter . | . . . . Parts Self-Destructed . | . . . . Prevented . | . . . . Parts Restored . | . . . . Kills | -11 -10 -10 -8 ------- Run | Yrd Mat Sub Mat Combat Hostiles Destroyed 29 | . 14 9 6 Guns 8 | . 3 . 5 Cannons 4 | . 1 2 1 AOE 17 | . 10 7 . Classes Destroyed 11 | 3 6 1 1 Worker 3 | 2 . . 1 Builder 1 | . 1 . . Tunneler 4 | 4 . . . Hauler 3 | . 2 . 1 Recycler 2 | 1 1 . . Mechanic 1 | . . . 1 Operator 2 | . 1 . 1 Watcher 3 | . 3 . . Swarmer 9 | . 9 . . Grunt 11 | . 5 . 6 Subdweller 9 | . . 9 . Best Kill Streak 7 | 5 5 5 7 Combat Bots Only 5 | . 3 5 5 Max Kills in Single Turn 4 | 1 3 4 1 Gunslinging . | . . . . Exploded 4 | . 3 4 . Melee . | . . . . Uniques/NPCs Destroyed . | . . . . Combat | -11 -10 -10 -8 -------- Run | Yrd Mat Sub Mat Hostile Shots Fired 358 | . 60 33 265 Missed 113 | . 13 7 93 Hits 245 | . 47 26 172 Melee 1 | . . . 1 Projectile 244 | . 47 26 171 Critical Strikes 8 | . 1 . 7 Damage Taken 3802 | . 556 591 2655 Core 769 | . 128 87 554 Absorbed by Shields . | . . . . Regen/Repaired (Parts) 61 | . 61 . . Core Remaining (%) 57 | 100 . 14 . Volleys Fired 168 | 13 82 27 46 Largest 2 | 2 2 2 2 Hottest 141 | 90 90 90 141 Shots Fired 237 | 26 96 38 77 Gun 173 | 26 72 7 68 Cannon 32 | . 10 13 9 Launcher 32 | . 14 18 . Special . | . . . . Kinetic 39 | . 9 3 27 Thermal 166 | 26 73 17 50 Explosive 32 | . 14 18 . Electromagnetic . | . . . . Robot Hit Streak 11 | 7 9 11 9 Robot Miss Streak 4 | 2 3 1 4 Penetration Max . | . . . . Secondary Targets 2 | . 1 . 1 Max Gunslinging Chain 1 | . 1 . 1 Shots Hit Robots 131 | 13 53 16 49 Core Hits 76 | 8 32 18 18 Critical Kills . | . . . . Critical Parts Destroyed . | . . . . Critical Strikes 5 | . 3 . 2 Burn 5 | . 3 . 2 Melee Attacks . | . . . . Impact . | . . . . Slashing . | . . . . Piercing . | . . . . Sneak Attacks . | . . . . Combat Hostiles . | . . . . Follow-up Attacks . | . . . . Damage Inflicted 3751 | 156 1373 1161 1061 Guns 1691 | 156 564 79 892 Cannons 344 | . 71 104 169 Explosions 1716 | . 738 978 . Melee . | . . . . Ramming . | . . . . Kinetic 496 | . 56 18 422 Thermal 1539 | 156 579 165 639 Explosive 1716 | . 738 978 . Electromagnetic . | . . . . Impact . | . . . . Slashing . | . . . . Piercing . | . . . . Highest Corruption 1 | . 1 1 . Average Corruption 1 | . 1 1 . Corruption Purged . | . . . . Corruption Blocked . | . . . . Effects 15 | . 8 7 . Message Errors 4 | . 2 2 . Matter Fused 6 | . 3 3 . Heat Flow Errors 1 | . . 1 . Energy Discharges 1 | . . 1 . Data Loss (minor) 2 | . 2 . . Alerts 1 | . 1 . . Overload Shots . | . . . . Overflow Damage 18 | . 18 . . Projectiles . | . . . . Explosions 18 | . 18 . . Melee . | . . . . Knockbacks . | . . . . Impact . | . . . . Kinetic . | . . . . Secondary . | . . . . Self-Inflicted Damage 50 | . 44 6 . Shots 4 | . 3 1 . Rammed . | . . . . Targets Rammed . | . . . . Kicked . | . . . . Crushed . | . . . . Highest Temperature 770 | 110 492 129 770 Average Temperature 190 | 40 112 31 305 Received Heat Transfer 1614 | . 222 87 1305 Effects 41 | . 4 . 37 Shutdowns 7 | . 1 . 6 Energy Bleed 7 | . . . 7 Interference 3 | . 1 . 2 Matter Decay 2 | . . . 2 Short Circuit 9 | . 1 . 8 Damage (minor) 5 | . 1 . 4 Damage (major) 5 | . . . 5 Damage (core) 3 | . . . 3 Siege Activations . | . . . . Martial Activations . | . . . . Shielding Activations . | . . . . Robots Disrupted . | . . . . Combat Hostiles . | . . . . Robots Corrupted . | . . . . Combat Hostiles . | . . . . Parts Fried . | . . . . Impact Corruptions . | . . . . Robots Melted . | . . . . Combat Hostiles . | . . . . Parts Melted 4 | . 3 . 1 Heat Transferred 3575 | 409 1803 297 1066 Parts Sabotaged . | . . . . Parts Stolen . | . . . . Parts Stripped . | . . . . Power Chain Reactions . | . . . . Alert | -11 -10 -10 -8 ------- Run | Yrd Mat Sub Mat Maximum Alert Level 1 | . 1 . . Low Security (%) 79 | 100 66 . 100 Level 1 20 | . 33 . . Level 2 . | . . . . Level 3 . | . . . . Level 4 . | . . . . Level 5 . | . . . . High Security . | . . . . Max Security . | . . . . Peak Influence 275 | 10 275 . 149 Initial . | . . . . Average 112 | 1 164 . 36 Influence Increases 1081 | 35 635 . 411 Destroy 0b10 Robot/C 400 | . 280 . 120 Destroy 0b10 Robot/NC 95 | 35 40 . 20 Destroy Leader 82 | . 70 . 12 Successful Hack 58 | . 26 . 32 Disable Machine 75 | . 45 . 30 Destroy Structure 71 | . 69 . 2 Lose Combat Pursuer 300 | . 105 . 195 Influence Decreases 948 | 35 514 121 278 Entered New Map 59 | . . 59 . Time Decay 774 | 35 504 62 173 Lost Part 115 | . 10 . 105 Squads Dispatched 6 | . 3 . 3 Investigation 2 | . 2 . . Extermination . | . . . . Reinforcement 4 | . 1 . 3 Assault . | . . . . Garrison . | . . . . Intercept . | . . . . Searches Triggered . | . . . . Construction Impeded . | . . . . Haulers Reinforced . | . . . . Active Scanning Responses . | . . . . Cargo Convoy Interrupts . | . . . . Stealth | -11 -10 -10 -8 --------- Run | Yrd Mat Sub Mat Distress Signals 3 | . . . 3 Communications Jammed . | . . . . Distress Signals . | . . . . Times Spotted 84 | . 32 9 43 Peak Tracking Total 16 | . 5 3 16 Tactical Retreats 11 | . 6 . 5 Traps | -11 -10 -10 -8 ------- Run | Yrd Mat Sub Mat Traps Triggered 1 | . . 1 . Indirectly . | . . . . Trap Hack Attempts . | . . . . Triggered . | . . . . Disarmed . | . . . . Reprogrammed . | . . . . Reused . | . . . . Traps Extracted . | . . . . Installed . | . . . . Triggered . | . . . . Machines | -11 -10 -10 -8 ---------- Run | Yrd Mat Sub Mat Machines Disabled 6 | . 3 1 2 Max in Single Turn 2 | . 2 1 1 Machines Repaired . | . . . . Machines Dismantled . | . . . . Machines Sabotaged . | . . . . Overloaded Fab Kills . | . . . . Hacking | -11 -10 -10 -8 --------- Run | Yrd Mat Sub Mat Machines Accessed 14 | . 9 1 4 Terminals 10 | . 6 . 4 Fabricators . | . . . . Repair Stations 1 | . 1 . . Recycling Units 2 | . 2 . . Scanalyzers . | . . . . Garrison Access . | . . . . Total Hacks 50 | . 26 9 15 Successful 29 | . 13 9 7 Failed 21 | . 13 . 8 Catastrophic 3 | . 2 . 1 Database Lockouts . | . . . . Manual 24 | . 11 . 13 Terminals 32 | . 17 . 15 Fabricators . | . . . . Repair Stations 4 | . 4 . . Recycling Units 5 | . 5 . . Scanalyzers . | . . . . Garrison Access . | . . . . Terminal Hacks 18 | . 4 9 5 Record 8 | . . 8 . Part Schematic 1 | . . . 1 Robot Analysis 3 | . 2 . 1 Level Access Points 1 | . . . 1 Branch Access Points 1 | . . . 1 Locate Traps 3 | . 2 . 1 Proto ID Catalog 1 | . . 1 . Fabricator Hacks . | . . . . Repair Station Hacks 3 | . 3 . . Scan Component 2 | . 2 . . Repair 1 | . 1 . . Recycling Unit Hacks 2 | . 2 . . Retrieve Components 2 | . 2 . . Scanalyzer . | . . . . Garrison Access Hacks . | . . . . Unauthorized Hacks 6 | . 4 . 2 Terminals 5 | . 3 . 2 Botnet 5 | . 3 . 2 Fabricators . | . . . . Repair Stations . | . . . . Recycling Units 1 | . 1 . . Mask 1 | . 1 . . Scanalyzers . | . . . . Garrison Access . | . . . . Data Cores Recovered 1 | . 1 . . Used . | . . . . Hacking Detections 11 | . 7 . 4 Full Trace Events 3 | . 3 . . Feedback Events 1 | . 1 . . Corruption 1 | . 1 . . Feedback Blocked . | . . . . Robot Schematics Acquired . | . . . . Robots Built . | . . . . Authchips . | . . . . Time . | . . . . Total Robot Build Rating . | . . . . Part Schematics Acquired 1 | . . . 1 Parts Built . | . . . . Authchips . | . . . . Time . | . . . . Total Part Build Rating . | . . . . Part Studies Acquired . | . . . . Parts Repaired 1 | . 1 . . Time 26 | . 26 . . Parts Recycled . | . . . . Recycled Matter . | . . . . Retrieved Matter . | . . . . Retrieved Components 12 | . 12 . . Parts Scanalyzed . | . . . . Part Schematics Acquired . | . . . . Parts Damaged . | . . . . Bothacking | -11 -10 -10 -8 ------------ Run | Yrd Mat Sub Mat Used RIF Installer . | . . . . Robots Hacked . | . . . . Non-combat . | . . . . Combat . | . . . . Robot Hacks Applied . | . . . . Relay Couplers Released . | . . . . Fabnet Peak Effective % . | . . . . Robots Rewired . | . . . . Allies Hacked . | . . . . Hacks Repelled . | . . . . Allies | -11 -10 -10 -8 -------- Run | Yrd Mat Sub Mat Total Allies . | . . . . Largest Group . | . . . . Highest-Rated Group . | . . . . Highest-Rated Ally . | . . . . Total Orders . | . . . . Ally Attacks . | . . . . Total Damage . | . . . . Kills . | . . . . Allies Corrupted . | . . . . Allies Melted . | . . . . Intel | -11 -10 -10 -8 ------- Run | Yrd Mat Sub Mat Active Infowar (turns) 1221 | 75 153 714 279 Optics 12 | . . . 12 Sensors 992 | . . 714 278 Seismic 228 | 75 153 . . Robot Analysis Total 3 | . 2 . 1 Derelict Logs Recovered . | . . . . Drone Launches . | . . . . Drone Recoveries . | . . . . Exploration | -11 -10 -10 -8 ------------- Run | Yrd Mat Sub Mat Turns Passed 3403 | 248 1505 984 666 Spaces Moved 2292 | 113 1073 701 405 Core 123 | 86 . . 37 Treads 28 | . . . 28 Legs 55 | 27 28 . . Wheels 1958 | . 1045 701 212 Hover . | . . . . Flight 128 | . . . 128 Fastest Speed 40 | 50 105 105 40 Average Speed 115 | 166 110 116 113 Slowest Speed 240 | 200 155 145 240 Overloaded Moves . | . . . . Propulsion Burnouts . | . . . . Robots Hopped 6 | . . . 6 Potential Cave-ins . | . . . . Cave-ins Triggered . | . . . . Exploration Rate (%) 44 | 5 99 29 43 Regions Visited 3 Branch Regions 1 Pre-discovered Areas . | . . . . Known Exits Taken . | . . . . Unknown Exits Taken 3 | 1 1 1 . Scrap Searched . | . . . . Spaces Dug 55 | . 23 32 . Terrain Destroyed 155 | . 64 89 2 Melee . | . . . . Projectile 3 | . . 1 2 AOE 152 | . 64 88 . Terrain Rammed . | . . . . Walls Destroyed . | . . . . Machines Disabled . | . . . . Actions | -11 -10 -10 -8 --------- Run | Yrd Mat Sub Mat Total 2807 | 146 1301 824 536 Wait 177 | . 92 52 33 Move 2278 | 112 1072 700 394 Hop 5 | . . . 5 Pick Up 61 | 14 20 11 16 Fast Attach 7 | 1 3 2 1 Attach 36 | 6 3 7 20 Detach 3 | . 1 . 2 Swap 36 | . 15 17 4 Drop 36 | . 13 8 15 Fire 168 | 13 82 27 46 Melee . | . . . . Ram . | . . . . Kick . | . . . . Crush . | . . . . Escape Stasis . | . . . . Rewire . | . . . . Trap . | . . . . Miscellaneous . | . . . . Route ------- -11/Scrapyard -10/Materials (discovered 5 exits: [*Mat x3] / [*Min] / *Sub) -10/Subcaves (discovered 2 exits: *Mat x2) -8/Materials (discovered 4 exits: *Fac x3 / Sto) History --------- Turn | Location | Event 2 | -11/Scrapyard | Met Revision 17 11 | -11/Scrapyard | Discovered new exit (range 14) 249 | -11/Scrapyard | Entered Materials 315 | -10/Materials | Build established: Mutant 557 | -10/Materials | Discovered new exit (range 8) 835 | -10/Materials | Discovered new exit (range 11) 973 | -10/Materials | Discovered new exit (range 7) 1034 | -10/Materials | Repaired Lgt. Armor Plating 1206 | -10/Materials | Discovered new exit (range 8) 1717 | -10/Materials | Core integrity fell below 50% 1742 | -10/Materials | Discovered new exit (range 9) 1754 | -10/Materials | Entered Subcaves 1923 | -10/Subcaves | Ambushed by Subdweller buried in earth 1927 | -10/Subcaves | Ambushed by Subdweller buried in earth 1930 | -10/Subcaves | Ambushed by Subdweller buried in earth 2124 | -10/Subcaves | Visited 4L-MR0's lab 2135 | -10/Subcaves | Found Gun Armor 2274 | -10/Subcaves | Discovered new exit (range 10) 2400 | -10/Subcaves | A Subdweller sparked back to life 2400 | -10/Subcaves | A Subdweller sparked back to life 2400 | -10/Subcaves | A Subdweller sparked back to life 2413 | -10/Subcaves | Core integrity fell below 20% 2431 | -10/Subcaves | Found Flightbrick 2452 | -10/Subcaves | Lost 6 parts (1n1u4w) 2505 | -10/Subcaves | Discovered new exit (range 11) 2732 | -10/Subcaves | Shifting Twisted Machinery released Mak. Light Armor Plating 2738 | -10/Subcaves | Entered Materials 2738 | -8/Materials | Evolved 4 slots: Propulsion x2, Utility x2 2752 | -8/Materials | Identified exit to Storage 3025 | -8/Materials | Build established: Subdweller-Mutant 3201 | -8/Materials | Core integrity fell below 50% 3269 | -8/Materials | Attached Gun Armor, gained temporary slots: Weapon x2 3270 | -8/Materials | Attached Flightbrick, gained temporary slots: Utility x3 3299 | -8/Materials | Lost 11 parts (2p5n3u1w) 3340 | -8/Materials | Build established: Mutant 3342 | -8/Materials | Core integrity fell below 20% 3363 | -8/Materials | Identified exit to Factory 3404 | -8/Materials | Destroyed by S-10 Pest with Light Assault Rifle Last Messages --------------- reinforcements to Terminal M004. 03349_ Acquired 117 matter. 03363_ Connecting with Terminal... >>Access(Main) Found 3 level access points to Factory: (52,6) (10,48) (46,87) Map updated. 03372_ Critical hit (Burn: +37). 03375_ S-10 Pest destroyed. 03375_ Critical hit (Burn: +37). 03380_ S-10 Pest destroyed. 03388_ ALERT: Suspicious intruders detected, dispatching Cutter reinforcements to area. 03389_ Critical hit (Burn: +37). 03391_ Purification Channel disabled. 03392_ K-01 Serf collects debris. 03398_ K-01 Serf destroyed. 03400_ K-01 Serf collects debris. Map ----- +----------------------------------------------------+ | ??????????????????????? ??????????????? | | ??????????????????????? #?????????????? | | ??????????????????????# ##????????????? | | ??????????????????????# ????????????? | | ??????????????????????# ????????????? | | ??????????????????????# ?????????????? | | ??????????????????????# #???########### | | ??????????????????????# #???# [ | | ????????????##+######## #???# T ** # | | ????????????# #???# ** # | | ????????????# #???# = * # | | ????????????# #???####+###### | | ????????????# ######?# | | ????????????# #?# | | ????????????# #?# | | ????????? ??# " ==/ ########## | | ??????? # ""%! ==/ # #?# | | ?????? + ""* ==/ # #?? | | ??????? # "" s + #?? | | ??????? ?+ c s # #?? | | ?????? ??# """ g # #?? | | ????? ???# """ g g]]g # #?? | | ????######### H"""c ]]! ###/###### | | ????????# "c ]g o * | | ????????# < | | ????????# @ | | ????????######+####+############## | | ?????????????????????????????????# | | ?????????????????????????????????# | | ??????????????????????????????? + | | ???????????????????????????????? # | | ?????????????????????????????????# | | ?????????????????????????????????# | | ?????????????????????????????????#### | | ????????????????????????????????????# | | ????????????????????????????????????# | | ????????????????????????????????????# | | ????????????????????????????????????# | | ?????????????????????????????????? | | ??????????????????????????????????### | | ????????????????????????????????????# | | ????????????????????????????????????# | | ????????????????????????????????????# | | ????????????????????????????????????## | | ?????????????????????????????????????# # | | ?????????????????????????????????????#+? | | ???????????????????????????????????????? | | ???????????????????????????????????????? | | ???????????????????????????????????????? | | ???????????????????????????????????????? | +----------------------------------------------------+ Best States ------------- Heat Dissipation 31 Energy Generation 14 Energy Capacity 275 Matter Stores 300 Matter Capacity 300 Sight Range 21 Robot Scan Range 15 Terrain Scan Density 10 Armor Coverage 1025 Evasion (%) 62 Recoil Reduction 2 Item Schematics ----------------- Huge Storage Unit | -8/Materials | Hacked Robot Schematics ------------------ None Fabricated ------------ Nothing Repaired ---------- Lgt. Armor Plating | 32% | -10/Materials Studied --------- None Alien Tech Used ----------------- None Achievements -------------- None Challenges ------------ None Game ------ Seed HellfirePrecisionSpoofer Manual? 0 Play Time 00:48:17 Cumulative 70.8 hours Start 2026.02.01 @ 23:44:32 End 2026.02.02 @ 15:38:47 Sessions 3 Manual Loads 0 Difficulty Rogue Special Mode None Game No. 34 Rogue 34 Adventurer 0 Explorer 0 Win Type - Total 1 Types 1/0/0/0/0/0/0/0/0/0 Lore% 48 Gallery% 44 Achievement% 40 Wizard Run 0 Options --------- Layout 1 ASCII 0 Keyboard 0 Movement Numpad Keybinds 0 Fullscreen 2 Font 24/Smallcaps Map View 50x35 Zoom Use 0% Tactical HUD 1 Map Filters NONE Filters NONE Steam 1 RUN: 667847c8-2166-4cce-9553-6fc01f472369